fUST/lending_fUST_20250527
["ID","MTS","AMOUNT","RATE_DAILY","PERIOD"]
[362464697,1748317834144,-430.0,0.00019389,2]
[362464698,1748317834153,-540.75,0.00019389,2]
[362464699,1748317834164,-430.0,0.00019389,2]
[362464700,1748317834174,-430.0,0.00019389,2]
[362464701,1748317834183,-457.29,0.00019389,2]
[362464702,1748317834193,-430.0,0.00019389,2]
[362464703,1748317834202,-430.0,0.00019389,2]
[362464704,1748317834211,-430.0,0.00019389,2]
[362464705,1748317834221,-430.0,0.00019389,2]
[362464706,1748317834231,-430.0,0.00019389,2]
[362464707,1748317834397,-200.97508311,0.00019389,2]
[362464708,1748317834408,-430.0,0.00019389,2]
[362464709,1748317834418,-430.0,0.00019389,2]
[362464710,1748317834429,-430.0,0.00019389,2]
[362464711,1748317834439,-430.0,0.00019389,2]
[362464712,1748317834450,-430.0,0.00019389,2]
[362464713,1748317834461,-430.0,0.00019389,2]
[362464714,1748317834472,-430.0,0.00019389,2]
[362464715,1748317834482,-430.0,0.00019389,2]
[362464716,1748317834492,-430.0,0.00019389,2]
[362464717,1748317834502,-430.0,0.00019389,2]
[362464718,1748317834513,-499.34,0.00019389,2]
[362464719,1748317834524,-432.42817663,0.00019389,2]
[362464720,1748317834534,-430.0,0.00019389,2]
[362464721,1748317834544,-430.0,0.00019389,2]
[362464722,1748317834555,-430.0,0.00019389,2]
[362464723,1748317834566,-430.0,0.00019389,2]
[362464724,1748317834576,-430.0,0.00019389,2]
[362464725,1748317834586,-430.0,0.00019389,2]
[362464726,1748317834596,-430.0,0.00019389,2]
[362464727,1748317834606,-430.0,0.00019389,2]
[362464728,1748317834616,-430.0,0.00019389,2]
[362464729,1748317834626,-430.0,0.00019389,2]
[362464730,1748317834635,-430.0,0.00019389,2]
[362464731,1748317834646,-550.8,0.00019389,2]
[362464732,1748317834655,-430.0,0.00019389,2]
[362464733,1748317834666,-430.0,0.00019389,2]
[362464734,1748317834676,-433.541563,0.00019389,2]
[362464735,1748317834686,-430.0,0.00019389,2]
[362464736,1748317834696,-430.0,0.00019389,2]
[362464737,1748317834706,-430.0,0.00019389,2]
[362464738,1748317834716,-430.0,0.00019389,2]
[362464739,1748317834725,-430.0,0.00019389,2]
[362464740,1748317834735,-430.0,0.00019389,2]
[362464741,1748317834746,-430.0,0.00019389,2]
[362464742,1748317834755,-430.0,0.00019389,2]
[362464743,1748317834765,-430.0,0.00019389,2]
[362464744,1748317834775,-430.0,0.00019389,2]
[362464745,1748317834785,-438.62726464,0.00019389,2]
[362464746,1748317834795,-298.16364839,0.00019389,2]
[362464747,1748317834805,-578.42213376,0.00019389,2]
[362464748,1748317834815,-430.0,0.00019389,2]
[362464749,1748317834824,-430.0,0.00019389,2]
[362464750,1748317834833,-430.0,0.00019389,2]
[362464751,1748317834842,-430.0,0.00019389,2]
[362464752,1748317834851,-430.0,0.00019389,2]
[362464753,1748317834861,-430.0,0.00019389,2]
[362464754,1748317834871,-431.35228016,0.00019389,2]
[362464755,1748317834881,-430.0,0.00019389,2]
[362464756,1748317834891,-430.0,0.00019389,2]
[362464757,1748317834902,-430.0,0.00019389,2]
[362464758,1748317834912,-430.0,0.00019389,2]
[362464759,1748317834921,-430.0,0.00019389,2]
[362464760,1748317834930,-430.0,0.00019389,2]
[362464761,1748317834941,-430.0,0.00019389,2]
[362464762,1748317834951,-430.0,0.00019389,2]
[362464763,1748317834961,-522.48,0.00019389,2]
[362464764,1748317834971,-533.43,0.00019389,2]
[362464765,1748317834981,-430.0,0.0001939,2]
[362464766,1748317834991,-341.49367306,0.0001939,2]
[362464767,1748317835001,-347.12698007,0.0001939,2]
[362464768,1748317835010,-430.0,0.0001939,2]
[362464769,1748317835020,-410.50668379,0.0001939,2]
[362464770,1748317835030,-403.74443085,0.0001939,2]
[362464771,1748317835041,-431.73199677,0.0001939,2]
[362464772,1748317835051,-408.14195522,0.0001939,2]
[362464773,1748317835060,-431.67683541,0.0001939,2]
[362464774,1748317835070,-166.6410457,0.0001939,2]
[362464775,1748317835080,-430.0,0.0001939,2]
[362464776,1748317835092,-430.0,0.0001939,2]
[362464777,1748317835102,-430.0,0.0001939,2]
[362464778,1748317835112,-410.66209425,0.0001939,2]
[362464779,1748317835122,-434.86754796,0.0001939,2]
[362464780,1748317835132,-430.0,0.0001939,2]
[362464781,1748317835141,-430.0,0.0001939,2]
[362464782,1748317835151,-439.62321198,0.0001939,2]
[362464783,1748317835161,-426.60772689,0.0001939,2]
[362464784,1748317835171,-430.0,0.0001939,2]
[362464785,1748317835182,-430.0,0.0001939,2]
[362464786,1748317835191,-324.51326619,0.0001939,2]
[362464787,1748317835201,-430.0,0.0001939,2]
[362464788,1748317835211,-430.0,0.0001939,2]
[362464789,1748317835220,-436.8554225,0.0001939,2]
[362464790,1748317835230,-396.8583303,0.0001939,2]
[362464791,1748317835240,-430.0,0.0001939,2]
[362464792,1748317835249,-503.47987014,0.0001939,2]
[362464793,1748317835259,-257.0,0.0001939,2]
[362464794,1748317835269,-430.0,0.0001939,2]
[362464795,1748317835278,-360.95113158,0.0001939,2]
[362464796,1748317835288,-430.0,0.0001939,2]
[362464797,1748317835297,-430.0,0.0001939,2]
[362464798,1748317835307,-430.0,0.0001939,2]
[362464799,1748317835317,-207.2516467,0.0001939,2]
[362464800,1748317835326,-430.0,0.0001939,2]
[362464801,1748317835336,-430.0,0.0001939,2]
[362464802,1748317835345,-409.49654014,0.0001939,2]
[362464803,1748317835355,-430.0,0.0001939,2]
[362464804,1748317835364,-430.0,0.0001939,2]
[362464805,1748317835374,-410.34956945,0.0001939,2]
[362464806,1748317835384,-334.01460011,0.0001939,2]
[362464807,1748317835393,-444.40049639,0.0001939,2]
[362464808,1748317835402,-430.0,0.0001939,2]
[362464809,1748317835412,-430.84700564,0.0001939,2]
[362464810,1748317835421,-430.0,0.0001939,2]
[362464811,1748317835431,-453.07215491,0.0001939,2]
[362464812,1748317835440,-394.68939842,0.0001939,2]
[362464813,1748317835450,-416.83314554,0.0001939,2]
[362464814,1748317835459,-452.52206794,0.0001939,2]
[362464815,1748317835468,-452.14384119,0.0001939,2]
[362464816,1748317835478,-430.0,0.0001939,2]
[362464817,1748317835487,-453.69908247,0.0001939,2]
[362464818,1748317835497,-411.8199038,0.0001939,2]
[362464819,1748317835506,-404.28382579,0.0001939,2]
[362464820,1748317835515,-430.0,0.0001939,2]
[362464821,1748317835524,-330.70590416,0.0001939,2]
[362464822,1748317835534,-408.90497436,0.0001939,2]
[362464823,1748317835543,-411.55524812,0.0001939,2]
[362464824,1748317835552,-416.08504167,0.0001939,2]
[362464825,1748317835561,-454.73281423,0.0001939,2]
[362464826,1748317835571,-409.54682402,0.0001939,2]
[362464827,1748317835580,-430.0,0.0001939,2]
[362464828,1748317835589,-430.0,0.0001939,2]
[362464829,1748317835598,-403.14301129,0.0001939,2]
[362464830,1748317835607,-453.78592043,0.0001939,2]
[362464831,1748317835616,-411.56354347,0.0001939,2]
[362464832,1748317835626,-419.1375358,0.0001939,2]
[362464833,1748317835635,-410.46464604,0.0001939,2]
[362464834,1748317835644,-433.32450129,0.0001939,2]
[362464835,1748317835654,-430.0,0.0001939,2]
[362464836,1748317835663,-271.60993285,0.0001939,2]
[362464837,1748317835672,-430.0,0.0001939,2]
[362464838,1748317835681,-430.0,0.0001939,2]
[362464839,1748317835691,-430.0,0.0001939,2]
[362464840,1748317835700,-374.90971732,0.0001939,2]
[362464841,1748317835709,-430.0,0.0001939,2]
[362464842,1748317835718,-430.0,0.0001939,2]
[362464843,1748317835727,-408.59242071,0.0001939,2]
[362464844,1748317835737,-414.44274536,0.0001939,2]
[362464845,1748317835746,-406.40758037,0.0001939,2]
[362464846,1748317835755,-407.97628099,0.0001939,2]
[362464847,1748317835765,-430.0,0.0001939,2]
[362464848,1748317835774,-407.50072423,0.0001939,2]
[362464849,1748317835784,-415.69999327,0.0001939,2]
[362464850,1748317835793,-408.60518842,0.0001939,2]
[362464851,1748317835803,-403.13270339,0.0001939,2]
[362464852,1748317835812,-433.70871508,0.0001939,2]
[362464853,1748317835821,-433.78382378,0.0001939,2]
[362464854,1748317835831,-405.40065638,0.0001939,2]
[362464855,1748317835839,-430.0,0.0001939,2]
[362464856,1748317835848,-412.15048422,0.0001939,2]
[362464857,1748317835857,-430.0,0.0001939,2]
[362464858,1748317835866,-405.43705863,0.0001939,2]
[362464859,1748317835875,-405.08988392,0.0001939,2]
[362464860,1748317835885,-432.6859199,0.0001939,2]
[362464861,1748317835894,-433.98189124,0.0001939,2]
[362464862,1748317835904,-500.0,0.0001939,2]
[362464863,1748317835913,-430.0,0.0001939,2]
[362464864,1748317835922,-420.61531018,0.0001939,2]
[362464865,1748317835931,-430.0,0.0001939,2]
[362464866,1748317835941,-364.1765838,0.0001939,2]
[362464867,1748317835950,-430.0,0.0001939,2]
[362464868,1748317835960,-430.0,0.0001939,2]
[362464869,1748317835969,-435.79293538,0.0001939,2]
[362464870,1748317835979,-430.0,0.0001939,2]
[362464871,1748317835988,-330.83298238,0.0001939,2]
[362464872,1748317835997,-432.2161106,0.0001939,2]
[362464873,1748317836007,-430.0,0.0001939,2]
[362464874,1748317836016,-249.09140266,0.0001939,2]
[362464875,1748317836025,-430.40683056,0.0001939,2]
[362464876,1748317836034,-405.50342884,0.0001939,2]
[362464877,1748317836044,-431.73412127,0.0001939,2]
[362464878,1748317836053,-430.0,0.0001939,2]
[362464879,1748317836062,-430.0,0.0001939,2]
[362464880,1748317836072,-430.0,0.0001939,2]
[362464881,1748317836083,-431.57079556,0.0001939,2]
[362464882,1748317836093,-422.98183294,0.0001939,2]
[362464883,1748317836103,-435.32756588,0.0001939,2]
[362464884,1748317836112,-434.13975678,0.0001939,2]
[362464885,1748317836121,-307.21554483,0.0001939,2]
[362464886,1748317836131,-430.0,0.0001939,2]
[362464887,1748317836140,-430.0,0.0001939,2]
[362464888,1748317836149,-430.0,0.0001939,2]
[362464889,1748317836161,-407.96060411,0.0001939,2]
[362464890,1748317836170,-430.0,0.0001939,2]
[362464891,1748317836180,-345.26726626,0.0001939,2]
[362464892,1748317836189,-170.72469272,0.0001939,2]
[362464893,1748317836199,-430.0,0.0001939,2]
[362464894,1748317836208,-512.52,0.0001939,2]
[362464895,1748317836218,-430.0,0.0001939,2]
[362464896,1748317836228,-430.0,0.0001939,2]
[362464897,1748317836237,-412.02557043,0.0001939,2]
[362464898,1748317836247,-411.91153829,0.0001939,2]
[362464899,1748317836256,-404.42995992,0.0001939,2]
[362464900,1748317836266,-430.0,0.0001939,2]
[362464901,1748317836275,-430.0,0.0001939,2]
[362464902,1748317836285,-430.0,0.0001939,2]
[362464903,1748317836294,-407.36378751,0.0001939,2]
[362464904,1748317836304,-430.0,0.0001939,2]
[362464905,1748317836313,-430.0,0.0001939,2]
[362464906,1748317836323,-1025.37019474,0.0001939,2]
[362464907,1748317836333,-430.0,0.0001939,2]
[362464908,1748317836343,-430.0,0.0001939,2]
[362464909,1748317836352,-408.29652058,0.0001939,2]
[362464910,1748317836361,-430.0,0.0001939,2]
[362464911,1748317836372,-422.14896306,0.0001939,2]
[362464912,1748317836381,-430.0,0.0001939,2]
[362464913,1748317836391,-430.19912314,0.0001939,2]
[362464914,1748317836400,-430.0,0.0001939,2]
[362464915,1748317836409,-430.0,0.0001939,2]
[362464916,1748317836419,-430.0,0.0001939,2]
[362464917,1748317836428,-524.44541634,0.0001939,2]
[362464918,1748317836438,-411.27567292,0.0001939,2]
[362464919,1748317836447,-430.0,0.0001939,2]
[362464920,1748317836456,-416.28210435,0.0001939,2]
[362464921,1748317836465,-430.0,0.0001939,2]
[362464922,1748317836475,-430.0,0.0001939,2]
[362464923,1748317836484,-430.0,0.0001939,2]
[362464924,1748317836493,-430.0,0.0001939,2]
[362464925,1748317836502,-430.0,0.0001939,2]
[362464926,1748317836511,-430.0,0.0001939,2]
[362464927,1748317836520,-430.0,0.0001939,2]
[362464928,1748317836530,-430.0,0.0001939,2]
[362464929,1748317836539,-406.79503389,0.0001939,2]
[362464930,1748317836548,-430.0,0.0001939,2]
[362464931,1748317836558,-430.0,0.0001939,2]
[362464932,1748317836567,-430.0,0.0001939,2]
[362464933,1748317836576,-430.0,0.0001939,2]
[362464934,1748317836585,-430.0,0.0001939,2]
[362464935,1748317836594,-430.0,0.0001939,2]
[362464936,1748317836603,-445.14742463,0.0001939,2]
[362464937,1748317836613,-430.0,0.0001939,2]
[362464938,1748317836622,-264.05245544,0.0001939,2]
[362464939,1748317836631,-430.0,0.0001939,2]
[362464940,1748317836641,-176.44515258,0.0001939,2]
[362464941,1748317836651,-415.13509455,0.0001939,2]
[362464942,1748317836660,-430.0,0.0001939,2]
[362464943,1748317836669,-419.83774233,0.0001939,2]
[362464944,1748317836678,-430.0,0.0001939,2]
[362464945,1748317836687,-430.0,0.0001939,2]
[362464946,1748317836696,-430.0,0.0001939,2]
[362464947,1748317836705,-430.0,0.0001939,2]
[362464948,1748317836714,-430.0,0.0001939,2]
[362464949,1748317836724,-430.0,0.0001939,2]
[362464950,1748317836733,-430.0,0.0001939,2]
[362464951,1748317836742,-430.0,0.0001939,2]
[362464952,1748317836752,-430.0,0.0001939,2]
[362464953,1748317836761,-430.0,0.0001939,2]
[362464954,1748317836771,-561.69934091,0.0001939,2]
[362464955,1748317836780,-430.0,0.0001939,2]
[362464956,1748317836789,-400.0,0.0001939,2]
[362464957,1748317836798,-430.0,0.0001939,2]
[362464958,1748317836807,-412.67648568,0.0001939,2]
[362464959,1748317836816,-430.0,0.0001939,2]
[362464960,1748317836825,-430.0,0.0001939,2]
[362464961,1748317836834,-430.0,0.0001939,2]
[362464962,1748317836843,-430.0,0.0001939,2]
[362464963,1748317836853,-430.0,0.0001939,2]
[362464964,1748317836862,-430.0,0.0001939,2]
[362464965,1748317836871,-415.88086642,0.0001939,2]
[362464966,1748317836880,-437.25468501,0.0001939,2]
[362464967,1748317836890,-430.0,0.0001939,2]
[362464968,1748317836899,-458.32348441,0.0001939,2]
[362464969,1748317836908,-430.0,0.0001939,2]
[362464970,1748317836918,-430.0,0.0001939,2]
[362464971,1748317836927,-500.0,0.0001939,2]
[362464972,1748317837062,-430.0,0.0001939,2]
[362464973,1748317837073,-430.0,0.0001939,2]
[362464974,1748317837084,-430.0,0.0001939,2]
[362464975,1748317837096,-430.0,0.0001939,2]
[362464976,1748317837106,-430.0,0.0001939,2]
[362464977,1748317837115,-430.0,0.0001939,2]
[362464978,1748317837124,-412.55056333,0.0001939,2]
[362464979,1748317837134,-430.0,0.0001939,2]
[362464980,1748317837143,-430.36384446,0.0001939,2]
[362464981,1748317837153,-414.98312937,0.0001939,2]
[362464982,1748317837163,-430.0,0.0001939,2]
[362464983,1748317837172,-430.0,0.0001939,2]
[362464984,1748317837183,-430.0,0.0001939,2]
[362464985,1748317837192,-415.18448536,0.0001939,2]
[362464986,1748317837202,-416.30234873,0.0001939,2]
[362464987,1748317837212,-430.0,0.0001939,2]
[362464988,1748317837222,-430.0,0.0001939,2]
[362464989,1748317837231,-230.56189863,0.0001939,2]
[362464990,1748317837241,-430.0,0.0001939,2]
[362464991,1748317837251,-430.0,0.0001939,2]
[362464992,1748317837260,-419.00329191,0.0001939,2]
[362464993,1748317837270,-430.0,0.0001939,2]
[362464994,1748317837279,-468.52,0.0001939,2]
[362464995,1748317837289,-408.77794614,0.0001939,2]
[362464996,1748317837299,-430.0,0.0001939,2]
[362464997,1748317837308,-428.94618492,0.0001939,2]
[362464998,1748317837317,-430.0,0.0001939,2]
[362464999,1748317837327,-430.0,0.0001939,2]
[362465000,1748317837336,-430.0,0.0001939,2]
[362465001,1748317837345,-416.69313481,0.0001939,2]
[362465002,1748317837355,-430.0,0.0001939,2]
[362465003,1748317837365,-430.0,0.0001939,2]
[362465004,1748317837375,-430.0,0.0001939,2]
[362465005,1748317837385,-357.78340308,0.0001939,2]
[362465006,1748317837395,-555.85144591,0.0001939,2]
[362465007,1748317837404,-430.0,0.0001939,2]
[362465008,1748317837414,-430.0,0.0001939,2]
[362465009,1748317837424,-430.0,0.0001939,2]
[362465010,1748317837435,-430.0,0.0001939,2]
[362465011,1748317837444,-435.03462808,0.0001939,2]
[362465012,1748317837454,-430.0,0.0001939,2]
[362465013,1748317837463,-430.0,0.0001939,2]
[362465014,1748317837473,-310.14001524,0.0001939,2]
[362465015,1748317837483,-430.0,0.0001939,2]
[362465016,1748317837492,-574.35974314,0.0001939,2]
[362465017,1748317837502,-430.0,0.0001939,2]
[362465018,1748317837511,-338.02063043,0.0001939,2]
[362465019,1748317837521,-430.0,0.0001939,2]
[362465020,1748317837531,-430.0,0.0001939,2]
[362465021,1748317837540,-430.0,0.0001939,2]
[362465022,1748317837550,-430.0,0.0001939,2]
[362465023,1748317837559,-430.0,0.0001939,2]
[362465024,1748317837568,-430.0,0.0001939,2]
[362465025,1748317837578,-430.0,0.0001939,2]
[362465026,1748317837587,-715.92,0.0001939,2]
[362465027,1748317837597,-461.81919041,0.0001939,2]
[362465028,1748317837607,-500.0,0.00019391,2]
[362465029,1748317837616,-430.0,0.00019395,2]
[362465030,1748317837626,-255.91853099,0.00019395,2]
[362465031,1748317837635,-430.0,0.00019395,2]
[362465032,1748317837644,-430.0,0.00019395,2]
[362465033,1748317837654,-430.0,0.00019661,2]
[362465034,1748317837664,-430.0,0.00019662,2]
[362465035,1748317837673,-430.0,0.00019662,2]
[362465036,1748317837683,-430.0,0.00019662,2]
[362465037,1748317837693,-325.57,0.00019662,2]
[362465038,1748317837703,-263.88,0.00019662,2]
[362465039,1748317837714,-430.0,0.00019662,2]
[362465040,1748317837724,-1232.65,0.00019662,2]
[362465041,1748317837735,-513.82090908,0.00019662,2]
[362465042,1748317837744,-430.0,0.00019662,2]
[362465043,1748317837752,-446.85156411,0.00019662,2]
[362465044,1748317837762,-441.13921239,0.00019662,2]
[362465045,1748317837771,-430.0,0.00019662,2]
[362465046,1748317837781,-430.0,0.00019662,2]
[362465047,1748317837791,-430.0,0.00019662,2]
[362465048,1748317837800,-439.47803342,0.00019662,2]
[362465049,1748317837809,-430.0,0.00019662,2]
[362465050,1748317837819,-430.0,0.00019662,2]
[362465051,1748317837828,-430.0,0.00019662,2]
[362465052,1748317837838,-242.2459901,0.00019662,2]
[362465053,1748317837847,-430.0,0.00019662,2]
[362465054,1748317837856,-430.0,0.00019662,2]
[362465055,1748317837866,-430.0,0.00019662,2]
[362465056,1748317837875,-263.08,0.00019662,2]
[362465057,1748317837885,-430.0,0.00019662,2]
[362465058,1748317837894,-430.0,0.00019662,2]
[362465059,1748317837904,-693.34,0.00019662,2]
[362465060,1748317837915,-412.15548913,0.00019662,2]
[362465061,1748317837924,-849.46,0.00019662,2]
[362465062,1748317837934,-430.0,0.00019662,2]
[362465063,1748317837943,-430.0,0.00019662,2]
[362465064,1748317837953,-494.4688748,0.00019663,2]
[362465065,1748317837962,-436.28484307,0.00019663,2]
[362465066,1748317837971,-430.0,0.00019663,2]
[362465067,1748317837984,-430.0,0.00019663,2]
[362465068,1748317837995,-430.0,0.00019663,2]
[362465069,1748317838005,-430.0,0.00019663,2]
[362465070,1748317838016,-430.0,0.00019663,2]
[362465071,1748317838026,-430.0,0.00019663,2]
[362465072,1748317838035,-430.0,0.00019663,2]
[362465073,1748317838045,-354.13332259,0.00019663,2]
[362465074,1748317838055,-430.0,0.00019663,2]
[362465075,1748317838064,-430.0,0.00019663,2]
[362465076,1748317838075,-430.0,0.00019663,2]
[362465077,1748317838088,-497.77790784,0.00019663,2]
[362465078,1748317838097,-438.53716469,0.00019663,2]
[362465079,1748317838107,-471.82409013,0.00019663,2]
[362465080,1748317838116,-430.0,0.00019663,2]
[362465081,1748317838127,-430.0,0.00019663,2]
[362465082,1748317838136,-463.35736995,0.00019663,2]
[362465083,1748317838146,-430.0,0.00019663,2]
[362465084,1748317838158,-430.0,0.00019663,2]
[362465085,1748317838167,-430.0,0.00019663,2]
[362465086,1748317838177,-430.0,0.00019663,2]
[362465087,1748317838187,-430.0,0.00019663,2]
[362465088,1748317838196,-430.0,0.00019663,2]
[362465089,1748317838206,-430.0,0.00019663,2]
[362465091,1748317838215,-430.0,0.00019663,2]
[362465093,1748317838225,-430.0,0.00019663,2]
[362465095,1748317838234,-441.6,0.00019663,2]
[362465096,1748317838243,-430.0,0.00019663,2]
[362465097,1748317838253,-430.0,0.00019663,2]
[362465098,1748317838262,-500.0,0.00019663,2]
[362465100,1748317838272,-500.0,0.00019663,2]
[362465101,1748317838281,-430.0,0.00019663,2]
[362465102,1748317838291,-430.0,0.00019663,2]
[362465103,1748317838300,-430.0,0.00019663,2]
[362465104,1748317838309,-430.0,0.00019663,2]
[362465105,1748317838318,-430.0,0.00019663,2]
[362465106,1748317838328,-430.0,0.00019663,2]
[362465107,1748317838337,-436.49164404,0.00019663,2]
[362465108,1748317838347,-430.0,0.00019663,2]
[362465109,1748317838356,-540.75,0.00019663,2]
[362465110,1748317838366,-158.09,0.00019663,2]
[362465111,1748317838375,-442.43467982,0.00019663,2]
[362465112,1748317838385,-457.29,0.00019663,2]
[362465113,1748317838394,-430.0,0.00019663,2]
[362465114,1748317838404,-430.0,0.00019663,2]
[362465115,1748317838413,-442.18629898,0.00019663,2]
[362465116,1748317838423,-430.0,0.00019663,2]
[362465117,1748317838432,-430.0,0.00019663,2]
[362465118,1748317838442,-430.0,0.00019663,2]
[362465119,1748317838451,-430.0,0.00019663,2]
[362465120,1748317838460,-430.0,0.00019663,2]
[362465121,1748317838470,-430.0,0.00019663,2]
[362465122,1748317838480,-430.0,0.00019663,2]
[362465123,1748317838489,-430.0,0.00019663,2]
[362465124,1748317838498,-430.0,0.00019663,2]
[362465125,1748317838507,-430.0,0.00019663,2]
[362465126,1748317838517,-430.0,0.00019663,2]
[362465127,1748317838527,-430.0,0.00019663,2]
[362465128,1748317838536,-430.0,0.00019663,2]
[362465129,1748317838546,-430.0,0.00019663,2]
[362465130,1748317838556,-430.0,0.00019663,2]
[362465131,1748317838565,-430.0,0.00019663,2]
[362465132,1748317838575,-430.0,0.00019663,2]
[362465133,1748317838584,-196.56,0.00019663,2]
[362465134,1748317838593,-430.0,0.00019663,2]
[362465135,1748317838602,-430.0,0.00019663,2]
[362465136,1748317838611,-430.0,0.00019663,2]
[362465137,1748317838621,-430.0,0.00019663,2]
[362465138,1748317838629,-430.0,0.00019663,2]
[362465139,1748317838638,-430.0,0.00019663,2]
[362465140,1748317838648,-430.0,0.00019663,2]
[362465141,1748317838657,-430.0,0.00019663,2]
[362465142,1748317838666,-436.93167448,0.00019663,2]
[362465143,1748317838675,-430.0,0.00019663,2]
[362465144,1748317838684,-457.11,0.00019663,2]
[362465145,1748317838693,-430.0,0.00019663,2]
[362465146,1748317838702,-430.0,0.00019663,2]
[362465147,1748317838711,-471.37969676,0.00019663,2]
[362465148,1748317838722,-430.0,0.00019663,2]
[362465149,1748317838731,-479.19825307,0.00019663,2]
[362465150,1748317838740,-430.0,0.00019663,2]
[362465151,1748317838749,-522.48,0.00019663,2]
[362465152,1748317838758,-430.0,0.00019664,2]
[362465153,1748317838768,-473.80293826,0.00019664,2]
[362465154,1748317838777,-509.1219983,0.00019664,2]
[362465155,1748317838786,-430.0,0.00019664,2]
[362465156,1748317838795,-430.0,0.00019664,2]
[362465157,1748317838804,-430.0,0.00019664,2]
[362465158,1748317838813,-430.0,0.00019664,2]
[362465159,1748317838822,-430.0,0.00019664,2]
[362465160,1748317838831,-430.0,0.00019664,2]
[362465161,1748317838841,-395.02036622,0.00019664,2]
[362465162,1748317838850,-430.0,0.00019664,2]
[362465163,1748317838859,-440.10416159,0.00019664,2]
[362465164,1748317838868,-430.0,0.00019664,2]
[362465165,1748317838877,-430.0,0.00019664,2]
[362465166,1748317838886,-430.0,0.00019664,2]
[362465167,1748317838895,-219.54328878,0.00019664,2]
[362465168,1748317838905,-430.0,0.00019664,2]
[362465169,1748317838915,-430.0,0.00019664,2]
[362465170,1748317838925,-430.0,0.00019664,2]
[362465171,1748317838934,-430.0,0.00019664,2]
[362465172,1748317838944,-207.5276661,0.00019664,2]
[362465173,1748317838953,-430.0,0.00019664,2]
[362465174,1748317838962,-430.0,0.00019664,2]
[362465175,1748317838972,-430.0,0.00019664,2]
[362465176,1748317838981,-430.0,0.00019664,2]
[362465177,1748317838990,-430.0,0.00019664,2]
[362465178,1748317839000,-430.0,0.00019664,2]
[362465179,1748317839009,-430.0,0.00019664,2]
[362465180,1748317839018,-430.0,0.00019664,2]
[362465181,1748317839027,-430.0,0.00019664,2]
[362465182,1748317839036,-436.47297212,0.00019664,2]
[362465183,1748317839045,-430.0,0.00019664,2]
[362465184,1748317839054,-464.68,0.00019664,2]
[362465185,1748317839064,-430.0,0.00019664,2]
[362465186,1748317839073,-430.0,0.00019664,2]
[362465187,1748317839084,-430.0,0.00019664,2]
[362465188,1748317839095,-438.72586793,0.00019664,2]
[362465189,1748317839104,-430.0,0.00019664,2]
[362465190,1748317839113,-430.0,0.00019664,2]
[362465191,1748317839122,-430.0,0.00019664,2]
[362465192,1748317839135,-430.0,0.00019664,2]
[362465193,1748317839144,-430.41370067,0.00019664,2]
[362465194,1748317839153,-430.0,0.00019664,2]
[362465195,1748317839165,-437.45970747,0.00019664,2]
[362465196,1748317839174,-430.0,0.00019664,2]
[362465197,1748317839184,-430.0,0.00019664,2]
[362465198,1748317839193,-430.0,0.00019664,2]
[362465199,1748317839202,-430.0,0.00019664,2]
[362465200,1748317839211,-430.0,0.00019664,2]